bitfinex/quotes_ETHUSD_20251218
["timestamp","ask_amount","ask_price","bid_price","bid_amount"]
[1766069005693,0.002,2946.3,2945.0,5.8989]
[1766069005899,0.576,2946.2,2945.0,5.8989]
[1766069006258,0.576,2946.2,2945.0,12.68996392]
[1766069006459,0.576,2946.2,2945.2,2.2485]
[1766069006696,0.576,2946.2,2945.0,3.39547819]
[1766069006869,0.576,2946.2,2945.1,0.33954782]
[1766069007193,0.405504,2946.1,2944.4,6.36328023]
[1766069007392,0.86988423,2946.1,2944.4,6.4749]
[1766069007595,0.86988423,2946.1,2944.4,9.87114999]
[1766069007889,4.43464275,2946.2,2944.4,0.576]
[1766069008060,0.405504,2946.1,2944.4,9.29513137]
[1766069008263,0.405504,2946.1,2943.5,5.82725327]
[1766069008264,0.86988423,2945.6,2943.7,3.39698659]
[1766069008464,0.86988423,2945.6,2943.6,0.576]
[1766069008465,0.405504,2945.4,2943.6,0.576]
[1766069008788,0.50708012,2945.4,2943.6,3.397175]
[1766069008967,0.405504,2945.2,2943.4,2.8255]
[1766069009360,0.405504,2944.8,2943.4,0.001]
[1766069009562,0.86988423,2944.4,2942.9,0.001]
[1766069009796,1.06876625,2944.3,2942.9,3.39895275]
[1766069009959,0.576,2944.2,2942.9,0.001]
[1766069010155,0.576,2944.2,2942.9,5.8999]
[1766069010402,0.46438023,2944.1,2942.9,0.001]
[1766069010605,0.576,2944.2,2942.9,5.8999]
[1766069010771,3.39614528,2944.6,2942.9,5.8999]
[1766069010772,9.71620213,2945.3,2943.3,3.6504]
[1766069010971,0.405504,2945.1,2943.0,6.48889]
[1766069011177,0.405504,2944.9,2943.0,6.48889]
[1766069011699,0.86988423,2944.6,2943.0,0.58999]
[1766069011995,9.71620213,2944.7,2943.0,0.58999]
[1766069011996,1.05860864,2944.5,2943.0,5.8989]
[1766069012208,1.04038023,2944.4,2943.1,3.39777785]
[1766069012416,0.86988423,2944.3,2942.9,0.001]
[1766069012794,0.86988423,2944.3,2942.3,4.2264]
[1766069012795,0.86988423,2943.8,2942.3,3.6504]
[1766069012995,0.576,2943.7,2942.3,3.6504]
[1766069013387,0.576,2943.7,2942.2,0.001]
[1766069013584,0.46438023,2943.6,2942.2,0.59099]
[1766069013789,0.405504,2943.5,2942.2,0.001]
[1766069013986,0.405504,2943.1,2941.7,0.001]
[1766069014185,0.405504,2942.6,2941.7,0.001]
[1766069014514,0.576,2942.7,2941.7,5.8999]
[1766069014714,0.576,2942.7,2941.7,0.001]
[1766069015118,0.576,2942.7,2941.7,5.8999]
[1766069015316,0.576,2942.7,2941.7,0.001]
[1766069015518,0.576,2942.7,2941.7,0.59099]
[1766069015723,0.405504,2943.2,2941.9,3.6504]
[1766069015724,0.576,2943.2,2941.9,3.6504]
[1766069016026,9.71620213,2944.5,2941.9,0.43949563]
[1766069016199,0.10157612,2944.9,2941.9,0.43949563]
[1766069016200,9.71620213,2943.9,2942.3,3.39870169]
[1766069016536,1.54762021,2943.8,2942.4,6.23877017]
[1766069016730,9.71620213,2942.8,2941.7,0.001]
[1766069016897,0.576,2942.7,2941.7,0.001]
[1766069017300,1.04038023,2942.7,2941.7,0.001]
[1766069017514,1.04038023,2942.7,2940.9,0.576]
[1766069017515,0.405504,2942.6,2940.9,0.576]
[1766069017692,0.10157612,2941.9,2939.5,2.42999255]
[1766069017890,0.10157612,2942.2,2939.7,5.8989]
[1766069017891,0.46438023,2941.5,2939.7,5.8989]
[1766069018120,0.46438023,2941.5,2939.8,2.2485]
[1766069018288,0.46438023,2941.3,2939.8,5.8989]
[1766069018502,0.576,2941.2,2939.8,9.30047352]
[1766069018828,0.576,2941.4,2940.3,3.6504]
[1766069019126,0.10157612,2942.6,2940.0,0.576]
[1766069019333,0.46438023,2942.4,2940.1,3.6504]
[1766069019539,0.46438023,2942.4,2940.0,0.576]
[1766069019540,0.46438023,2942.4,2940.6,2.2485]
[1766069019737,0.46438023,2942.0,2940.7,0.576]
[1766069019893,0.46438023,2942.0,2940.6,5.8989]
[1766069020096,0.46438023,2942.0,2940.7,2.2485]
[1766069020296,3.39828429,2942.7,2940.7,2.2485]
[1766069020297,9.71620213,2942.7,2941.2,0.001]
[1766069020493,0.576,2942.6,2941.3,5.8989]
[1766069020813,0.405504,2942.5,2941.2,0.001]
[1766069021014,0.405504,2942.5,2940.0,0.405504]
[1766069021015,0.86988423,2942.1,2940.2,5.8989]
[1766069021323,0.405504,2941.9,2940.4,2.2485]
[1766069021525,1.05860864,2942.0,2940.6,3.40064085]
[1766069021826,0.405504,2942.3,2940.7,5.8989]
[1766069022023,0.46438023,2942.4,2940.7,6.4749]
[1766069022024,0.576,2942.0,2940.7,6.4749]
[1766069022327,0.86988423,2941.9,2940.0,0.001]
[1766069022630,0.86988423,2941.9,2940.3,3.40092792]
[1766069022631,0.46438023,2941.9,2940.3,3.40092792]
[1766069022831,0.576,2941.8,2940.7,9.0102511]
[1766069023040,3.39731612,2943.5,2940.8,0.90102511]
[1766069023327,9.71620213,2943.1,2941.0,3.5878]
[1766069023528,0.46438023,2942.5,2941.0,3.5878]
[1766069023700,0.46438023,2942.5,2941.3,2.022]
[1766069023895,0.576,2942.5,2941.3,5.6098]
[1766069024223,0.576,2942.5,2941.4,0.56098]
[1766069024447,9.71620213,2942.4,2939.2,0.05]
[1766069024609,9.71620213,2942.4,2940.1,0.576]
[1766069024610,0.10157612,2942.3,2940.1,0.576]
[1766069024814,0.86988423,2942.1,2940.3,0.46438023]
[1766069025030,0.405504,2941.9,2940.2,5.6098]
[1766069025234,0.405504,2941.9,2938.6,1.69104866]
[1766069025235,10.12170613,2941.6,2939.5,2.022]
[1766069025536,0.405504,2941.4,2939.5,5.6098]
[1766069025746,1.48670846,2941.5,2939.3,0.576]
[1766069025910,0.576,2941.3,2940.0,3.40236054]
[1766069026237,3.97543822,2941.7,2940.4,2.022]
[1766069026394,1.04038023,2941.6,2940.0,3.40232622]
[1766069026595,0.46438023,2941.6,2940.5,3.5878]
[1766069026818,9.71620213,2942.4,2940.6,0.03400665]
[1766069027013,0.576,2942.3,2940.6,5.6098]
[1766069027201,1.04038023,2942.3,2940.6,5.6098]
[1766069027396,9.71620213,2942.9,2940.6,0.405504]
[1766069027640,1.54762021,2942.8,2941.0,3.5878]
[1766069027797,1.54762021,2942.8,2940.6,0.46438023]
[1766069027798,0.46438023,2942.9,2941.4,3.5878]
[1766069027996,0.576,2942.8,2941.4,5.6098]
[1766069028196,0.76476461,2943.9,2941.1,0.576]
[1766069028197,0.002,2944.5,2941.2,14.0053952]
[1766069028439,0.10157612,2944.2,2942.0,3.5878]
[1766069028734,1.72879097,2944.2,2942.2,5.6098]
[1766069028953,0.17690744,2944.4,2942.7,3.5878]
[1766069028954,0.576,2944.1,2942.7,3.5878]
[1766069029111,0.576,2944.3,2942.8,0.576]
[1766069029321,0.576,2944.3,2943.0,5.6098]
[1766069029633,0.576,2944.3,2942.9,5.6098]
[1766069029794,0.576,2944.3,2942.8,0.576]
[1766069029996,0.17683946,2944.4,2942.3,3.5878]
[1766069029997,9.71620213,2944.2,2942.3,3.5878]
[1766069030351,0.97162021,2944.1,2942.7,6.79641573]
[1766069030628,0.576,2944.3,2943.2,5.6098]
[1766069030829,0.002,2944.5,2943.4,3.5878]
[1766069031029,0.002,2944.5,2942.8,0.46438023]
[1766069031228,0.002,2944.5,2942.9,2.598]
[1766069031229,6.7944501,2944.5,2942.9,2.598]
[1766069031416,6.7944501,2944.5,2942.3,0.46438023]
[1766069031417,0.46438023,2944.2,2942.5,9.58426209]
[1766069031619,0.576,2944.1,2942.7,5.6098]
[1766069031809,0.576,2944.1,2942.5,0.576]
[1766069032014,0.576,2944.0,2942.8,5.6098]
[1766069032209,0.576,2944.0,2942.5,0.576]
[1766069032210,0.46438023,2944.2,2942.7,2.022]
[1766069032527,0.576,2944.0,2943.0,5.6098]
[1766069033196,0.576,2944.0,2943.0,0.576]
[1766069033619,0.576,2944.0,2943.1,5.6098]
[1766069033821,0.576,2944.0,2943.0,0.576]
[1766069034021,0.002,2944.5,2943.3,2.022]
[1766069034221,0.002,2944.5,2943.6,5.6098]
[1766069034432,0.002,2944.5,2942.5,3.39845425]
[1766069034636,0.405504,2944.3,2942.5,0.576]
[1766069034802,0.46438023,2944.0,2942.4,3.5878]
[1766069035001,0.46438023,2944.0,2942.6,3.5878]
[1766069035257,6.79219834,2944.6,2942.7,4.33292849]
[1766069035258,0.576,2944.1,2942.7,4.33292849]
[1766069035420,0.87188423,2944.5,2942.7,0.93478]
[1766069035421,0.576,2944.0,2942.7,0.93478]
[1766069035751,0.46638023,2944.5,2942.7,0.576]
[1766069035752,0.002,2944.5,2942.7,0.576]
[1766069035947,0.002,2944.5,2943.5,2.022]
[1766069036147,0.002,2944.5,2943.1,2.022]
[1766069036148,0.46638023,2944.5,2943.1,2.022]
[1766069036347,0.46438023,2944.3,2942.9,0.576]
[1766069036518,0.576,2944.2,2942.9,0.576]
[1766069036718,0.576,2944.2,2942.6,3.5878]
[1766069036719,0.576,2944.2,2942.3,3.39863474]
[1766069036914,0.576,2944.2,2942.6,5.6098]
[1766069037321,0.576,2944.1,2942.4,0.33986347]
[1766069037520,0.576,2944.0,2942.9,5.6098]
[1766069037839,0.576,2944.0,2942.5,2.022]
[1766069038020,0.576,2944.0,2942.5,5.6098]
[1766069038355,6.79370902,2943.9,2942.5,5.6098]
[1766069038538,0.46438023,2943.8,2942.5,5.6098]
[1766069038721,0.46438023,2943.8,2942.2,0.576]
[1766069038722,0.72580892,2943.7,2942.2,0.576]
[1766069039432,3.86114294,2944.0,2942.6,5.6098]
[1766069039616,9.73932464,2944.1,2942.5,3.39843998]
[1766069039617,0.002,2944.1,2942.5,3.39843998]
[1766069039822,0.578,2944.1,2942.8,3.5878]
[1766069040120,0.002,2944.1,2943.1,5.6098]
[1766069040452,0.002,2944.1,2942.0,3.39895752]
[1766069040453,1.04238023,2944.1,2941.8,0.001]
[1766069040640,1.48347449,2944.0,2942.2,5.6535]
[1766069040834,1.07797049,2944.0,2942.6,5.6535]
[1766069041030,0.576,2943.9,2942.5,5.6535]
[1766069041248,0.576,2943.9,2942.4,3.39856196]
[1766069041552,0.576,2943.9,2942.2,0.576]
[1766069041868,0.576,2943.8,2942.4,3.5808]
[1766069042051,0.576,2943.8,2941.8,3.5818]
[1766069042052,0.46438023,2943.7,2941.8,3.5818]
[1766069042363,0.46438023,2943.3,2941.8,0.001]
[1766069042532,0.576,2943.2,2941.8,0.001]
[1766069042731,0.405504,2943.1,2941.8,0.001]
[1766069042932,0.50708012,2943.1,2941.8,0.001]
[1766069043157,0.46438023,2942.7,2941.2,5.6535]
[1766069043348,0.46438023,2942.7,2941.3,0.56535]
[1766069043349,1.59617049,2942.6,2941.3,0.56535]
[1766069043659,1.59617049,2942.6,2940.7,0.576]
[1766069043660,0.405504,2942.5,2940.7,0.576]
[1766069043867,0.405504,2942.5,2940.7,6.2295]
[1766069044079,0.576,2942.4,2940.7,0.576]
[1766069044240,0.576,2942.4,2940.8,3.5808]
[1766069044560,0.00850002,2942.9,2941.6,5.6535]
[1766069044858,0.00850002,2942.9,2941.0,10.20061203]
[1766069044859,0.00850002,2942.9,2941.8,5.6535]
[1766069045059,0.002,2944.1,2942.3,3.5808]
[1766069045274,0.002,2944.1,2943.1,2.0727]
[1766069045560,0.002,2944.1,2943.3,2.0727]
[1766069045765,0.002,2944.1,2943.1,0.576]
[1766069045766,3.97462474,2944.1,2943.1,0.576]
[1766069046059,3.97462474,2944.1,2942.7,5.6535]
[1766069046060,0.002,2944.1,2943.2,0.03397662]
[1766069046222,0.002,2944.1,2942.9,3.5808]
[1766069046423,0.002,2944.1,2942.7,2.0727]
[1766069046726,0.405504,2943.9,2942.2,2.0727]
[1766069046926,0.46438023,2943.0,2941.1,2.0737]
[1766069047234,0.50708012,2942.8,2941.2,0.62295]
[1766069047628,0.575,2942.7,2941.1,0.001]
[1766069047827,0.575,2942.7,2941.3,5.6535]
[1766069048024,0.575,2942.7,2941.3,2.0727]
[1766069048231,0.97146035,2942.6,2941.1,0.001]
[1766069048429,0.46438023,2942.4,2941.1,0.001]
[1766069048633,4.89282812,2942.9,2941.3,3.5808]
[1766069048844,0.575,2942.8,2941.3,3.5808]
[1766069049240,0.575,2942.7,2941.3,3.5808]
[1766069049531,0.575,2942.7,2941.2,2.0727]
[1766069049532,0.46438023,2942.6,2941.2,2.0727]
[1766069049849,0.405504,2942.6,2941.2,2.0727]
[1766069050048,1.1568,2942.2,2941.1,0.001]
[1766069050278,1.1568,2942.0,2940.3,3.5808]
[1766069050476,0.46438023,2941.8,2940.4,0.41558]
[1766069050661,1.1568,2941.5,2939.2,3.5808]
[1766069050972,1.1568,2941.5,2938.5,3.40300482]
[1766069050973,1.2077,2941.1,2939.4,3.5808]
[1766069051836,0.575,2941.0,2939.4,3.5808]
[1766069052078,0.575,2941.0,2938.1,2.47999255]
[1766069052079,0.46438023,2939.4,2937.2,2.42999255]
[1766069052247,0.46438023,2939.4,2936.7,0.003]
[1766069052248,0.10157612,2938.0,2936.7,0.003]
[1766069052450,0.10157612,2937.0,2935.2,2.42999255]
[1766069052638,1.3579,2936.7,2934.9,3.40716914]
[1766069052947,0.1031,2936.3,2935.0,0.34071691]
[1766069053149,0.1031,2936.3,2932.1,2.37239308]
[1766069053150,1.73967344,2934.4,2932.1,2.37239308]
[1766069053339,0.575,2934.3,2931.1,2.1392]
[1766069053540,8.12521689,2933.9,2931.3,2.1392]
[1766069053777,0.405504,2934.9,2931.5,2.1392]
[1766069053778,0.405504,2933.3,2931.5,2.1392]
[1766069053962,0.7422,2933.0,2930.9,3.5926]
[1766069054284,0.7422,2933.0,2929.6,8.12521689]
[1766069054285,0.7422,2932.9,2930.7,3.5926]
[1766069054440,0.576,2933.2,2931.0,3.41690299]
[1766069054441,0.7422,2932.7,2931.0,3.41690299]
[1766069054644,0.7422,2932.5,2931.1,0.3416903]
[1766069054838,0.04262719,2932.4,2931.0,0.00511789]
[1766069055060,8.16784408,2932.4,2931.0,0.00511789]
[1766069055261,0.7422,2932.5,2931.0,0.00511789]
[1766069055262,0.61862865,2932.3,2931.0,0.00511789]
[1766069055484,0.576,2932.3,2931.0,0.00511789]
[1766069055690,0.0426301,2932.2,2931.2,2.1392]
[1766069055845,8.12521689,2932.9,2931.7,3.5926]
[1766069055846,0.576,2932.9,2931.7,3.5926]
[1766069056041,0.576,2932.9,2931.3,0.21392]
[1766069056042,0.576,2932.9,2931.3,3.80652]
[1766069056296,3.50896522,2934.8,2931.3,3.80652]
[1766069056297,0.7402,2934.0,2931.9,3.5926]
[1766069056443,0.7402,2934.6,2932.7,2.1392]
[1766069056644,4.45406641,2936.1,2933.2,3.5926]
[1766069056645,0.7402,2935.2,2933.2,3.5926]
[1766069056989,0.04258798,2935.1,2933.7,2.1392]
[1766069057144,0.04258218,2935.5,2933.7,0.577]
[1766069057347,0.577,2936.8,2934.3,3.5926]
[1766069057566,0.577,2936.8,2934.8,5.7318]
[1766069057567,0.04256478,2936.7,2934.8,5.7318]
[1766069057770,0.04256478,2936.7,2934.4,0.93626]
[1766069057771,0.7393,2936.6,2934.6,2.1392]
[1766069057956,0.78076768,2936.5,2934.7,2.1392]
[1766069058147,0.7382,2936.3,2934.6,3.5926]
[1766069058564,4.14390938,2936.3,2934.7,3.5926]
[1766069058798,0.7382,2935.4,2933.6,5.54796166]
[1766069059080,0.7382,2935.4,2933.4,3.5926]
[1766069059081,0.405504,2935.2,2933.4,3.5926]
[1766069059247,0.579,2935.1,2933.7,3.40863861]
[1766069059447,0.04258943,2935.0,2933.7,3.5926]
[1766069059647,0.7371,2935.7,2933.7,3.5926]
[1766069059648,0.04258653,2935.2,2933.7,5.7318]
[1766069059844,0.58,2935.1,2933.9,5.7318]
[1766069060071,0.58,2935.3,2933.8,0.57318]
[1766069060282,0.04258653,2935.2,2933.4,5.7318]
[1766069060483,0.405504,2934.9,2933.4,0.58]
[1766069060787,1.141504,2934.6,2933.0,0.579]
[1766069060951,0.579,2934.7,2932.9,3.5926]
[1766069061284,0.04259234,2934.8,2932.8,0.58]
[1766069061285,3.40611056,2935.9,2933.5,5.7318]
[1766069061587,0.579,2936.4,2934.4,3.5926]
[1766069061771,0.04257058,2936.3,2934.8,3.5926]
[1766069061972,0.83537612,2936.1,2934.1,3.5926]
[1766069062149,0.10157612,2936.3,2933.6,1.25498213]
[1766069062150,0.87795105,2936.0,2934.0,5.7318]
[1766069062351,4.1401426,2935.7,2934.0,3.5926]
[1766069062575,1.04045228,2935.6,2934.1,3.5926]
[1766069062780,0.46438023,2935.8,2933.7,0.58]
[1766069062781,0.04258218,2935.5,2934.2,4.1726]
[1766069063087,3.40495079,2936.9,2934.2,4.1726]
[1766069063088,0.04256623,2936.6,2934.8,3.5926]
[1766069063252,0.62256623,2936.6,2934.9,4.1726]
[1766069063453,0.7326,2936.5,2934.9,4.1726]
[1766069063684,0.7326,2936.3,2934.9,0.58]
[1766069063886,0.83297612,2936.9,2934.9,4.1726]
[1766069064092,0.8958193,2936.8,2935.1,2.1392]
[1766069064292,3.98448711,2937.3,2935.2,2.1392]
[1766069064584,0.58,2938.0,2936.2,3.5926]
[1766069064783,0.58,2938.0,2935.8,8.12521689]
[1766069064784,0.72412351,2937.9,2935.6,5.7318]
[1766069065085,0.17699676,2937.3,2936.1,3.5926]
[1766069065248,0.04255753,2937.2,2935.5,2.1392]
[1766069065451,0.58,2937.1,2935.6,3.5926]
[1766069065650,0.04256043,2937.0,2935.5,0.27192]
[1766069065884,0.58,2937.1,2935.5,3.5926]
[1766069066185,0.58,2937.1,2935.3,0.58]
[1766069066186,0.83057612,2937.0,2935.3,0.58]
[1766069066390,0.83057612,2937.0,2934.9,2.1392]
[1766069066391,0.729,2936.8,2934.9,5.7318]
[1766069066550,0.04256478,2936.7,2935.3,5.7318]
[1766069066974,0.10157612,2936.2,2934.1,2.1392]
[1766069067190,0.62257348,2936.1,2934.3,3.5926]
[1766069067491,0.04257493,2936.0,2934.9,3.5926]
[1766069067665,0.46438023,2936.7,2934.4,3.5926]
[1766069067851,0.10157612,2936.4,2933.9,3.5926]
[1766069068056,0.10157612,2936.4,2932.9,3.40957417]
[1766069068057,0.405504,2936.3,2934.0,3.99020877]
[1766069068251,0.14414525,2936.4,2934.4,3.40776762]
[1766069068475,3.40544723,2936.5,2934.7,3.5926]
[1766069068751,3.86898325,2937.2,2934.6,8.58959712]
[1766069068952,1.01045731,2937.1,2934.9,3.5926]
[1766069069252,0.7245,2936.8,2934.9,3.5926]
[1766069069477,0.7245,2936.6,2934.9,3.5926]
[1766069069676,0.60852113,2936.7,2934.7,0.89951011]
[1766069069677,0.7245,2936.4,2934.7,0.89951011]
[1766069069959,1.18768023,2936.7,2934.8,3.5926]
[1766069070176,0.7233,2936.5,2934.8,3.5926]
[1766069070461,3.40576255,2936.2,2934.8,3.5926]
[1766069070656,0.04257348,2936.1,2934.8,3.5926]
[1766069070891,0.38689833,2937.1,2935.2,2.1392]
[1766069071075,0.04255029,2937.7,2935.9,3.5926]
[1766069071283,0.58,2937.7,2936.1,5.7318]
[1766069071483,0.1770126,2937.8,2936.4,2.1392]
[1766069071791,0.58,2937.8,2936.1,5.7318]
[1766069071995,0.7207,2937.6,2935.2,2.1392]
[1766069072291,0.7207,2937.4,2935.5,5.7318]
[1766069072493,0.7207,2937.1,2935.3,0.21392]
[1766069072696,0.04256043,2937.0,2935.5,3.5926]
[1766069072898,0.7207,2937.1,2935.5,3.5926]
[1766069073193,7.99172733,2937.7,2935.7,3.5926]
[1766069073499,0.7193,2937.5,2935.9,3.5926]
[1766069073693,0.04255464,2937.4,2935.9,4.1726]
[1766069074390,0.002,2937.0,2935.5,4.1726]
[1766069074595,0.002,2937.0,2935.6,0.75792134]
[1766069074796,0.002,2937.0,2935.2,2.1392]
[1766069074797,0.718,2936.9,2935.2,2.1392]
[1766069074998,0.7167,2936.7,2935.0,3.5926]
[1766069075197,0.72414235,2936.6,2934.9,3.5926]
[1766069075374,0.10157612,2936.4,2934.7,0.58]
[1766069075697,0.62256913,2936.4,2935.0,2.1392]
[1766069075864,0.7167,2936.9,2935.2,2.1392]
[1766069076066,0.7153,2936.5,2935.2,0.579]
[1766069076269,0.002,2937.0,2935.2,4.1716]
[1766069076464,3.40683486,2937.0,2935.5,2.1392]
[1766069076663,0.04256188,2936.9,2935.5,5.7318]
[1766069076900,0.002,2937.0,2935.9,3.5926]
[1766069077106,0.002,2937.0,2936.3,3.5926]
[1766069077276,0.002,2937.0,2935.5,0.57318]
[1766069077277,0.002,2937.0,2935.5,1.15218]
[1766069077475,0.002,2937.0,2935.7,3.5926]
[1766069077902,0.04456043,2937.0,2935.7,3.5926]
[1766069078064,0.002,2937.0,2935.7,4.1716]
[1766069078268,4.51010708,2937.0,2935.5,0.57318]
[1766069078488,3.74750708,2937.0,2935.6,3.5926]
[1766069078807,0.04256188,2936.9,2935.6,3.5926]
[1766069079095,0.04256188,2936.9,2935.5,0.579]
[1766069079096,0.7625,2936.8,2934.1,3.5926]
[1766069079288,0.579,2936.7,2935.0,3.5926]
[1766069079473,0.579,2936.7,2935.0,4.1716]
[1766069079682,0.04256623,2936.6,2935.1,3.5926]
[1766069079996,0.04256623,2936.6,2935.2,3.5926]
[1766069080198,0.579,2936.7,2935.2,2.1392]
[1766069080367,0.579,2936.7,2935.2,5.7318]
[1766069080709,7.15234194,2937.0,2935.1,0.97179915]
[1766069080710,0.002,2937.0,2935.9,3.5926]
[1766069081176,3.44939529,2937.0,2935.5,2.7182]
[1766069081378,0.6854203,2936.9,2935.6,3.5926]
[1766069081578,6.81168424,2937.0,2935.5,0.579]
[1766069081898,0.7597,2936.8,2935.2,4.1706]
[1766069082100,0.04256478,2936.7,2935.2,4.1706]
[1766069082307,0.7583,2936.5,2934.0,0.001]
[1766069082490,1.22128023,2936.1,2934.5,5.893]
[1766069082795,1.04070428,2936.0,2934.5,5.893]
[1766069083204,0.80117638,2935.9,2934.1,3.7584]
[1766069083367,0.10157612,2935.6,2934.0,0.001]
[1766069083571,0.7586,2935.4,2934.0,0.001]
[1766069084209,0.578,2935.4,2934.2,3.7584]
[1766069084372,0.578,2935.4,2934.0,0.001]
[1766069084373,0.7562,2935.3,2934.0,0.001]
[1766069084707,2.50504905,2934.7,2932.1,8.12521689]
[1766069084871,2.50504905,2934.7,2931.3,4.85236952]
[1766069084872,1.8091093,2934.3,2932.4,3.7584]
[1766069085077,0.7537,2934.1,2932.4,3.7584]
[1766069085471,0.10157612,2934.5,2932.5,0.578]
[1766069085472,0.04259669,2934.5,2932.5,0.578]
[1766069085673,0.578,2934.6,2932.6,0.46438023]
[1766069085885,0.578,2934.6,2933.2,5.893]
[1766069086205,0.72217281,2934.5,2932.2,0.81252169]
[1766069086377,0.7519,2934.3,2932.6,7.16832366]
[1766069086574,0.46438023,2934.8,2932.9,3.7584]
[1766069086802,0.578,2934.7,2933.3,3.7584]
[1766069087204,0.578,2934.8,2933.4,5.893]
[1766069087513,0.7501,2934.4,2932.4,4.3364]
[1766069087673,0.7501,2934.4,2932.6,7.16828542]
[1766069087890,8.22679301,2934.9,2932.6,7.16828542]
[1766069087891,0.7482,2935.4,2933.0,2.1346]
[1766069088095,0.578,2935.3,2933.6,2.1346]
[1766069088308,0.10157612,2936.4,2934.2,2.1346]
[1766069088309,1.21090428,2936.0,2934.2,2.1346]
[1766069088515,3.4054664,2936.5,2934.2,2.1346]
[1766069088516,0.7482,2935.8,2934.3,3.7584]
[1766069088720,0.7482,2934.8,2932.6,3.7584]
[1766069088890,0.58,2934.7,2933.3,3.7584]
[1766069089089,0.58,2934.6,2933.4,3.7584]
[1766069089511,0.58,2934.5,2933.5,2.1346]
[1766069089823,0.58,2935.0,2933.6,5.893]
[1766069090030,0.04258943,2935.0,2933.8,3.7584]
[1766069090203,3.40518268,2936.7,2934.7,2.1346]
[1766069090401,8.12521689,2936.9,2934.9,3.7584]
[1766069090402,0.7445,2936.5,2934.9,3.7584]
[1766069090606,0.72414235,2936.6,2934.4,3.7584]
[1766069090607,0.84607612,2936.2,2934.4,3.7584]
[1766069090826,0.10157612,2936.0,2934.4,3.7584]
[1766069091030,0.62257638,2935.9,2934.3,3.7584]
[1766069091324,0.10157612,2936.0,2934.2,3.7584]
[1766069091630,0.7426,2936.9,2934.6,2.1346]
[1766069091805,0.04256333,2936.8,2935.2,2.1346]
[1766069092123,0.04256333,2936.8,2934.6,2.1346]
[1766069092124,0.7407,2936.5,2934.6,2.1346]
[1766069092327,0.7407,2936.1,2934.6,3.7584]
[1766069092529,7.55315316,2935.8,2934.2,0.58]
[1766069092837,7.55315316,2935.8,2934.1,3.7584]
[1766069092838,3.40622658,2935.8,2934.1,3.7584]
[1766069093045,1.3188,2935.7,2934.1,3.7584]
[1766069093193,0.84037612,2935.5,2933.6,3.40870309]
[1766069093506,0.84037612,2935.5,2933.5,0.21346]
[1766069093507,0.58,2935.4,2934.0,3.40820326]
[1766069093689,0.7388,2936.0,2934.5,3.7584]
[1766069093894,0.10157612,2936.4,2933.9,3.7584]
[1766069093895,0.46438023,2935.8,2933.9,3.7584]
[1766069094090,0.8810554,2935.7,2933.9,3.7584]
[1766069094314,0.405504,2935.1,2933.5,0.21346]
[1766069094494,4.14428721,2934.8,2933.4,3.7584]
[1766069094694,0.45702251,2934.7,2933.4,3.7584]
[1766069094939,0.735,2934.2,2931.9,0.58]
[1766069095096,0.0426025,2934.1,2932.6,3.7584]
[1766069095304,0.405504,2933.9,2932.5,0.001]
[1766069095622,0.735,2933.7,2932.5,0.001]
[1766069096000,0.62260976,2933.6,2932.5,0.001]
[1766069096732,7.39757792,2933.6,2932.5,0.001]
[1766069096942,0.73975779,2933.5,2932.5,0.001]
[1766069097113,0.7312,2933.4,2932.5,0.001]
[1766069097318,0.77381266,2933.4,2932.0,0.581]
[1766069097538,0.77381266,2933.4,2931.9,3.41073934]
[1766069097708,0.73975779,2933.5,2932.1,5.893]
[1766069097906,0.73975779,2933.5,2931.5,3.7584]
[1766069097907,0.405504,2933.3,2931.5,3.7584]
[1766069098233,0.04261557,2933.2,2931.5,3.7584]
[1766069098415,0.04261557,2933.2,2931.6,2.1346]
[1766069098611,3.4093621,2933.1,2931.6,2.1346]
[1766069098817,0.58,2933.0,2931.6,9.30408121]
[1766069099133,3.51016182,2933.8,2931.8,2.1346]
[1766069099336,1.49249254,2933.7,2931.8,4.3384]
[1766069099520,0.405504,2933.5,2931.5,0.58]
[1766069099715,0.10157612,2933.6,2931.8,3.7584]
[1766069099927,0.10157612,2933.6,2931.7,2.1346]
[1766069099928,0.58,2933.5,2932.0,5.893]
[1766069100233,0.58,2933.5,2932.2,3.7584]
[1766069100407,0.58,2933.5,2932.1,2.7239]
[1766069100408,0.41442872,2934.7,2932.5,2.1346]
[1766069100609,1.76229483,2936.1,2933.5,8.12521689]
[1766069100610,0.04257348,2936.1,2933.5,8.12521689]
[1766069100937,0.002,2937.0,2933.1,17.0468105]
[1766069100938,0.58,2936.5,2934.6,3.9193]
[1766069101140,0.002,2937.0,2934.7,0.97193]
[1766069101304,0.002,2937.0,2935.3,2.2938]
[1766069101503,0.002,2937.0,2935.9,2.2938]
[1766069101706,0.002,2938.2,2936.4,2.2938]
[1766069101933,0.002,2938.2,2937.0,2.2938]
[1766069102102,0.58,2939.2,2937.7,3.9193]
[1766069102310,0.58,2939.2,2937.1,0.80938]
[1766069102311,0.002,2939.4,2937.9,6.2131]
[1766069102543,0.10157612,2942.2,2939.0,5.69630981]
[1766069102744,0.10157612,2940.8,2939.1,3.9193]
[1766069102902,0.10157612,2940.2,2938.9,0.58]
[1766069103102,0.10157612,2940.2,2937.2,0.581]
[1766069103103,0.10157612,2939.4,2937.2,0.581]
[1766069103341,0.46438023,2938.9,2937.2,0.581]
[1766069103646,8.22679301,2938.4,2936.4,2.2938]
[1766069103817,0.10157612,2938.6,2936.5,3.9193]
[1766069104016,0.10157612,2938.6,2936.1,0.581]